bitfinex-derivatives/quotes_SOLF0:USTF0_20260226
["timestamp","ask_amount","ask_price","bid_price","bid_amount"]
[1772092291997,8.37365106,87.498,87.341,194.5951]
[1772092291998,1.68971131,87.458,87.411,3.73329167]
[1772092292198,4.69625461,87.47,87.411,3.73329167]
[1772092292398,1.68971131,87.469,87.411,3.73329167]
[1772092293004,1.68971131,87.469,87.411,14.02899167]
[1772092293708,3.0065433,87.46,87.411,14.02899167]
[1772092293904,1.67675207,87.459,87.411,14.02899167]
[1772092294200,1.67675207,87.459,87.334,21.31695652]
[1772092294201,1.67675207,87.449,87.397,3.53710918]
[1772092294395,3.0065433,87.43,87.382,3.53710918]
[1772092294594,3.0065433,87.42,87.382,3.53710918]
[1772092295199,1.67675207,87.429,87.382,3.53710918]
[1772092295505,1.75514844,87.449,87.382,3.53710918]
[1772092296705,8.07656242,87.45,87.382,3.53710918]
[1772092296706,1.75514844,87.447,87.382,3.53710918]
[1772092297310,1.75514844,87.439,87.382,3.53710918]
[1772092298998,1.78896454,87.437,87.383,10.2991]
[1772092299201,1.78896454,87.437,87.384,3.53710918]
[1772092300913,1.78896454,87.437,87.387,13.83570918]
[1772092301110,1.78896454,87.437,87.334,3.53710918]
[1772092301307,10.62377095,87.477,87.341,3.53710918]
[1772092301308,1.85747816,87.429,87.341,3.53710918]
[1772092302912,1.83504219,87.427,87.341,3.53710918]
[1772092303215,1.83504219,87.427,87.331,147.41392265]
[1772092303216,1.83504219,87.409,87.331,3.53710918]
[1772092303517,1.83504219,87.396,87.331,3.53710918]
[1772092305013,1.9264002,87.388,87.332,10.3051]
[1772092306720,1.9264002,87.388,87.338,3.53710918]
[1772092307317,1.9264002,87.388,87.284,21.31695652]
[1772092307318,1.94076612,87.385,87.276,3.53710918]
[1772092307621,1.94076612,87.369,87.276,3.53710918]
[1772092308917,1.96773596,87.366,87.294,3.53710918]
[1772092309316,1.96773596,87.349,87.294,3.53710918]
[1772092310719,2.03731643,87.369,87.294,3.53710918]
[1772092312021,2.03731643,87.369,87.28,8.07511963]
[1772092312022,2.03731643,87.369,87.307,3.53710918]
[1772092312826,1.89709003,87.367,87.307,3.53710918]
[1772092313526,1.89709003,87.367,87.308,3.53710918]
[1772092314423,8.07511963,87.39,87.28,8.07511963]
[1772092314424,1.90564341,87.381,87.313,3.53710918]
[1772092315126,1.90564341,87.381,87.319,3.53710918]
[1772092315525,1.90564341,87.38,87.319,3.53710918]
[1772092315724,1.90564341,87.38,87.277,3.53710918]
[1772092315926,1.90564341,87.38,87.257,21.6548202]
[1772092315927,1.90963902,87.349,87.273,3.62161007]
[1772092317129,1.90963902,87.349,87.276,3.62161007]
[1772092317928,2.28147415,87.343,87.276,3.62161007]
[1772092318533,10.3042,87.341,87.276,3.62161007]
[1772092319420,2.28147415,87.328,87.258,3.62161007]
[1772092319822,2.36063541,87.319,87.258,3.62161007]
[1772092320027,2.36063541,87.337,87.261,3.62161007]
[1772092320728,2.36063541,87.337,87.279,3.62161007]
[1772092321125,2.36063541,87.337,87.257,21.6548202]
[1772092321126,2.36063541,87.369,87.289,3.62161007]
[1772092321735,2.4113229,87.368,87.29,3.62161007]
[1772092322932,2.4113229,87.368,87.301,3.62161007]
[1772092323930,2.4113229,87.368,87.305,3.62161007]
[1772092324230,2.47882381,87.384,87.305,3.62161007]
[1772092325030,2.47882381,87.38,87.309,3.62161007]
[1772092325833,2.44378852,87.379,87.309,3.62161007]
[1772092326439,2.44378852,87.366,87.309,3.62161007]
[1772092327037,2.44378852,87.364,87.309,3.62161007]
[1772092328134,2.25707988,87.357,87.286,3.62161007]
[1772092329835,8.07511963,87.35,87.291,3.62161007]
[1772092330037,8.07511963,87.35,87.269,3.62161007]
[1772092330038,2.32586943,87.329,87.269,3.62161007]
[1772092330439,8.07511963,87.33,87.257,21.6548202]
[1772092330440,2.32586943,87.326,87.257,21.6548202]
[1772092331141,2.32586943,87.324,87.258,3.62161007]
[1772092331943,2.32586943,87.324,87.26,3.62161007]
[1772092332440,2.32586943,87.324,87.257,21.6548202]
[1772092332441,10.3085,87.304,87.257,21.6548202]
[1772092332637,20.6029,87.364,87.258,3.62161007]
[1772092332638,8.07511963,87.31,87.258,3.62161007]
[1772092332846,2.30392824,87.318,87.258,3.62161007]
[1772092333640,2.30392824,87.318,87.26,3.62161007]
[1772092335054,2.30392824,87.318,87.262,3.62161007]
[1772092335243,12.61082824,87.318,87.262,3.62161007]
[1772092335551,2.20971733,87.317,87.262,3.62161007]
[1772092336951,10.3071,87.315,87.262,3.62161007]
[1772092338651,2.20971733,87.317,87.262,3.62161007]
[1772092339054,2.4695903,87.314,87.262,3.62161007]
[1772092339250,2.4695903,87.314,87.257,25.27643027]
[1772092339446,2.4695903,87.314,87.258,3.62161007]
[1772092340147,2.52075323,87.329,87.261,3.62161007]
[1772092340463,2.52075323,87.327,87.261,3.62161007]
[1772092340755,2.52075323,87.342,87.261,3.62161007]
[1772092341958,2.52809494,87.34,87.274,3.62161007]
[1772092342848,10.3046,87.337,87.274,3.62161007]
[1772092343051,2.52809494,87.329,87.258,3.62161007]
[1772092343853,2.5425004,87.321,87.258,3.62161007]
[1772092344757,2.5425004,87.316,87.258,3.62161007]
[1772092345557,2.5425004,87.312,87.258,3.62161007]
[1772092345754,2.5425004,87.312,87.259,3.62161007]
[1772092346952,2.5425004,87.312,87.261,3.85391393]
[1772092347360,2.5425004,87.312,87.257,21.6548202]
[1772092347559,2.56333283,87.31,87.257,21.6548202]
[1772092347861,2.56333283,87.31,87.258,3.85391393]
[1772092348857,5.15451653,87.34,87.258,3.85391393]
[1772092348858,2.56101404,87.339,87.258,3.85391393]
[1772092349268,2.56101404,87.338,87.27,3.85391393]
[1772092349857,2.56101404,87.338,87.257,21.6548202]
[1772092349858,2.56190708,87.314,87.257,25.50873413]
[1772092350157,2.56190708,87.314,87.258,3.85391393]
[1772092350462,8.39139036,87.356,87.257,21.6548202]
[1772092350463,2.56190708,87.303,87.257,21.6548202]
[1772092352664,2.37786243,87.296,87.257,21.6548202]
[1772092353055,2.37786243,87.289,87.244,3.85391393]
[1772092353863,2.34982683,87.288,87.244,3.85391393]
[1772092354752,5.15516152,87.31,87.244,3.85391393]
[1772092354753,2.35548345,87.306,87.244,3.85391393]
[1772092355355,8.07511963,87.31,87.244,3.85391393]
[1772092355356,2.35548345,87.302,87.244,3.85391393]
[1772092356967,12.6345814,87.3,87.244,3.85391393]
[1772092357155,2.3255814,87.299,87.244,3.85391393]
[1772092358865,18.38291963,87.31,87.246,3.50844422]
[1772092359260,3.02432057,87.29,87.246,3.50844422]
[1772092360164,3.02432057,87.3,87.25,3.50844422]
[1772092360964,3.02432057,87.3,87.253,3.50844422]
[1772092361368,10.3089,87.3,87.253,3.50844422]
[1772092361566,3.02434215,87.29,87.253,3.50844422]
[1772092363665,3.02434215,87.3,87.255,3.50844422]
[1772092363964,2.48477426,87.299,87.232,3.50844422]
[1772092364162,2.48477426,87.299,87.241,3.50844422]
[1772092364868,2.48477426,87.299,87.252,3.50844422]
[1772092365361,10.3092,87.298,87.252,3.50844422]
[1772092365563,3.02434215,87.29,87.189,34.31]
[1772092365763,3.02434215,87.27,87.221,3.50844422]
[1772092365959,3.02434215,87.28,87.229,3.50844422]
[1772092366163,2.45950831,87.29,87.229,3.50844422]
[1772092366164,3.02434215,87.27,87.229,3.50844422]
[1772092367462,3.02434215,87.27,87.234,3.50844422]
[1772092368062,3.02434215,87.28,87.234,3.50844422]
[1772092368269,10.5485765,87.329,87.234,3.50844422]
[1772092368270,3.02434215,87.27,87.234,3.50844422]
[1772092369665,3.02434215,87.26,87.221,3.50844422]
[1772092370871,2.5830528,87.269,87.221,3.50844422]
[1772092371866,2.5830528,87.269,87.21,3.02434215]
[1772092371867,2.5830528,87.269,87.224,3.50844422]
[1772092372568,2.5830528,87.269,87.228,3.50844422]
[1772092372772,3.02434215,87.28,87.228,3.50844422]
[1772092372971,2.60108158,87.269,87.184,3.50844422]
[1772092373269,3.02434215,87.27,87.23,3.50844422]
[1772092373666,3.02434215,87.27,87.232,3.50844422]
[1772092374059,2.60108158,87.283,87.232,3.50844422]
[1772092374265,3.02434215,87.26,87.232,3.50844422]
[1772092375671,3.02434215,87.27,87.232,3.50844422]
[1772092376666,3.02434215,87.27,87.233,10.3168]
[1772092378976,3.02434215,87.27,87.232,3.50844422]
[1772092379378,3.02434215,87.27,87.171,28.46197027]
[1772092379379,3.02434215,87.28,87.243,13.87283316]
[1772092380075,2.69613957,87.269,87.225,3.55723316]
[1772092380376,3.02434215,87.26,87.225,3.55723316]
[1772092380775,3.02434215,87.25,87.225,3.55723316]
[1772092381276,3.02434215,87.25,87.212,3.55723316]
[1772092381473,5.72048172,87.26,87.212,3.55723316]
[1772092381778,5.72048172,87.26,87.214,13.87623316]
[1772092382073,5.72048172,87.26,87.215,3.55723316]
[1772092382674,2.69613957,87.26,87.215,3.55723316]
[1772092382982,3.02434215,87.25,87.215,3.55723316]
[1772092383382,8.39139036,87.305,87.201,3.55723316]
[1772092383383,3.02434215,87.24,87.201,3.55723316]
[1772092383778,3.02434215,87.22,87.181,3.55723316]
[1772092384778,3.02434215,87.23,87.181,3.55723316]
[1772092385674,2.46881546,87.254,87.192,3.55723316]
[1772092385881,3.02434215,87.25,87.192,3.55723316]
[1772092386082,3.02434215,87.25,87.201,3.55723316]
[1772092386284,3.02434215,87.25,87.203,3.55723316]
[1772092386790,3.02434215,87.24,87.203,3.55723316]
[1772092386986,3.02434215,87.24,87.19,3.02434215]
[1772092386987,2.46881546,87.239,87.191,3.55723316]
[1772092387488,3.02434215,87.23,87.191,3.55723316]
[1772092389288,2.46881546,87.239,87.191,3.55723316]
[1772092389490,3.02434215,87.23,87.191,3.55723316]
[1772092389993,2.29073545,87.229,87.191,3.55723316]
[1772092390590,2.29073545,87.259,87.211,3.55723316]
[1772092390786,2.29073545,87.269,87.221,3.55723316]
[1772092391489,2.29073545,87.259,87.201,3.55723316]
[1772092392790,3.02434215,87.26,87.223,10.318]
[1772092392986,3.02434215,87.27,87.224,3.55723316]
[1772092393190,2.30748835,87.273,87.224,3.55723316]
[1772092393394,2.30748835,87.273,87.23,3.55723316]
[1772092393599,3.02434215,87.28,87.231,3.55723316]
[1772092394992,3.02434215,87.28,87.236,10.3164]
[1772092395694,2.01501902,87.288,87.231,3.55723316]
[1772092395695,3.02434215,87.27,87.231,3.55723316]
[1772092396098,2.01486808,87.269,87.224,10.3179]
[1772092399192,3.02434215,87.26,87.224,10.3179]
[1772092399998,3.02434215,87.25,87.191,3.55723316]
[1772092400202,3.02434215,87.24,87.191,3.55723316]
[1772092401900,3.02434215,87.24,87.203,10.3204]
[1772092405008,3.02434215,87.23,87.194,3.55723316]
[1772092405709,3.02434215,87.23,87.196,10.3212]
[1772092405908,3.02434215,87.23,87.197,3.88048978]
[1772092406109,2.05084385,87.24,87.197,3.88048978]
[1772092406110,5.075186,87.24,87.197,3.88048978]
[1772092407318,3.02434215,87.23,87.202,10.3204]
[1772092408811,5.075186,87.24,87.202,10.3204]
[1772092409212,3.02434215,87.25,87.207,3.88048978]
[1772092409616,3.02434215,87.24,87.207,3.88048978]
[1772092411017,3.02434215,87.24,87.208,10.3197]
[1772092413619,3.02434215,87.24,87.212,3.88048978]
[1772092413921,2.07194164,87.254,87.212,3.88048978]
[1772092414717,3.02434215,87.25,87.212,3.88048978]
[1772092414915,3.02434215,87.25,87.214,3.56258923]
[1772092415913,3.02434215,87.26,87.217,3.56258923]
[1772092416922,3.02434215,87.26,87.224,10.3179]
[1772092417323,3.02434215,87.26,87.225,3.56258923]
[1772092417523,2.05720939,87.268,87.228,3.56258923]
[1772092418418,3.02434215,87.27,87.228,3.56258923]
[1772092418720,2.0499936,87.279,87.232,3.56258923]
[1772092418921,3.02434215,87.27,87.232,3.56258923]
[1772092420025,3.02434215,87.27,87.21,3.02434215]
[1772092420026,3.02434215,87.27,87.236,13.87898923]
[1772092421422,2.05926854,87.259,87.215,3.56258923]
[1772092421624,3.02434215,87.24,87.202,3.56258923]
[1772092422525,3.02434215,87.24,87.204,3.56258923]
[1772092422931,2.05926854,87.249,87.204,3.56258923]
[1772092423225,3.02731791,87.25,87.204,3.56258923]
[1772092423818,2.03628233,87.249,87.204,3.56258923]
[1772092424125,3.02731791,87.25,87.204,3.56258923]
[1772092424720,3.02731791,87.25,87.207,3.56258923]
[1772092425530,3.02731791,87.26,87.215,3.56258923]
[1772092425826,3.02731791,87.25,87.215,3.56258923]
[1772092426030,3.02731791,87.24,87.203,3.56258923]
[1772092426622,5.07119246,87.25,87.203,3.56258923]
[1772092427221,5.07119246,87.25,87.206,10.32]
[1772092427426,5.07119246,87.25,87.207,3.56258923]
[1772092427628,3.02731791,87.25,87.207,3.56258923]
[1772092428024,3.02731791,87.25,87.21,3.56258923]
[1772092428423,3.02731791,87.26,87.21,3.56258923]
[1772092428820,1.99471909,87.276,87.218,3.56258923]
[1772092429024,3.02731791,87.27,87.218,3.56258923]
[1772092429833,3.02731791,87.24,87.186,3.56258923]
[1772092430228,3.02731791,87.23,87.186,3.56258923]
[1772092430629,3.02731791,87.23,87.187,13.88478923]
[1772092432429,3.02731791,87.22,87.187,13.88478923]
[1772092435830,3.02731791,87.23,87.187,13.88478923]
[1772092436030,5.24126879,87.23,87.187,13.88478923]
[1772092436230,3.02731791,87.23,87.191,3.61008948]
[1772092436426,34.31,87.282,87.191,3.61008948]
[1772092436427,3.02731791,87.24,87.191,3.61008948]
[1772092437933,3.02731791,87.24,87.198,3.61008948]
[1772092439432,3.02731791,87.25,87.212,3.61008948]
[1772092439640,3.02731791,87.25,87.142,181.306]
[1772092439641,3.02731791,87.24,87.196,3.61008948]
[1772092440036,3.02731791,87.24,87.201,3.61008948]
[1772092440937,3.02731791,87.24,87.202,10.3204]
[1772092442435,2.0808283,87.259,87.217,10.3187]
[1772092442938,2.0808283,87.259,87.217,13.92878948]
[1772092444342,3.02731791,87.26,87.218,3.61008948]
[1772092444539,3.02731791,87.26,87.22,3.61008948]
[1772092446037,3.02731791,87.26,87.221,10.3182]
[1772092446840,3.02731791,87.26,87.22,3.61008948]
[1772092447638,2.05866649,87.262,87.22,3.61008948]
[1772092447839,3.02731791,87.26,87.22,3.61008948]
[1772092450139,3.02731791,87.26,87.222,3.61008948]
[1772092450443,10.3109,87.284,87.222,3.61008948]
[1772092450444,3.02731791,87.28,87.222,3.61008948]
[1772092450645,2.08280867,87.287,87.231,3.61008948]
[1772092451046,2.08280867,87.305,87.244,3.61008948]
[1772092451246,3.02731791,87.3,87.244,3.61008948]
[1772092451647,3.02731791,87.29,87.244,3.61008948]
[1772092451844,3.02731791,87.29,87.251,10.3146]
[1772092452047,3.02731791,87.29,87.252,3.61008948]
[1772092453750,3.02731791,87.3,87.252,3.61008948]
[1772092454138,3.02731791,87.3,87.253,3.61008948]
[1772092455147,5.15198764,87.3,87.253,3.61008948]
[1772092455449,3.02731791,87.29,87.253,3.61008948]
[1772092455849,2.12466973,87.3,87.253,3.61008948]
[1772092455850,5.15198764,87.3,87.253,3.61008948]
[1772092456249,5.15198764,87.3,87.255,3.61008948]
[1772092456444,2.12171966,87.299,87.255,3.61008948]
[1772092457851,3.02731791,87.29,87.255,3.61008948]
[1772092458046,2.14204314,87.289,87.245,3.61008948]
[1772092458242,3.02731791,87.28,87.245,3.61008948]
[1772092459142,3.02731791,87.28,87.247,3.61008948]
[1772092459542,2.14204314,87.289,87.247,3.61008948]
[1772092459746,3.02731791,87.29,87.247,3.61008948]
[1772092459951,3.02731791,87.29,87.252,3.61008948]
[1772092460346,3.02731791,87.28,87.252,3.61008948]
[1772092460542,2.14938826,87.301,87.256,13.92418948]
[1772092460752,3.02731791,87.29,87.256,13.92418948]
[1772092460952,3.02731791,87.29,87.256,3.61008948]
[1772092462050,3.02731791,87.28,87.246,10.3152]
[1772092463343,2.11030884,87.287,87.239,3.61008948]
[1772092463546,2.11030884,87.279,87.239,3.61008948]
[1772092464556,2.11030884,87.279,87.24,10.3159]
[1772092464857,2.11030884,87.279,87.24,13.92598948]
[1772092466351,3.02731791,87.28,87.245,3.62530695]
[1772092466556,2.0677818,87.291,87.245,3.62530695]
[1772092466557,3.02731791,87.29,87.245,3.62530695]
[1772092467853,3.02731791,87.29,87.246,10.3152]
[1772092468060,3.02731791,87.29,87.247,3.62530695]
[1772092469654,3.02731791,87.29,87.252,3.62530695]
[1772092470452,2.07175571,87.303,87.254,3.62530695]
[1772092470651,21.18720865,87.383,87.254,3.62530695]
[1772092470652,3.02731791,87.3,87.254,3.62530695]
[1772092470959,3.02731791,87.31,87.254,3.62530695]
[1772092471659,3.02731791,87.31,87.267,3.62530695]
[1772092472153,3.02731791,87.32,87.281,3.62530695]
[1772092473061,3.02731791,87.31,87.281,3.62530695]
[1772092473860,3.02731791,87.31,87.282,10.311]
[1772092475757,2.07967777,87.309,87.271,10.3123]
[1772092475957,3.02731791,87.3,87.272,3.66081803]
[1772092477259,3.02731791,87.29,87.23,3.02731791]
[1772092477464,3.02731791,87.29,87.231,3.66081803]
[1772092478855,3.02731791,87.29,87.251,3.66081803]
[1772092479864,3.02731791,87.29,87.253,10.3145]
[1772092482069,3.02731791,87.29,87.256,13.97491803]
[1772092482457,2.07967777,87.299,87.256,13.97491803]
[1772092482665,3.02731791,87.29,87.256,13.97491803]
[1772092483266,3.02437592,87.29,87.256,13.97491803]
[1772092486968,2.07967777,87.299,87.257,3.66081803]
[1772092487170,3.02437592,87.3,87.262,3.66081803]
[1772092487964,3.02437592,87.3,87.265,10.3129]
[1772092490772,3.02437592,87.3,87.265,13.97371803]
[1772092494277,3.02437592,87.3,87.266,3.66081803]
[1772092494578,1.9134021,87.299,87.266,3.66081803]
[1772092495172,3.02437592,87.29,87.256,3.66081803]
[1772092495772,3.02437592,87.29,87.187,62.78806267]
[1772092495773,3.02437592,87.28,87.242,3.66081803]
[1772092499178,1.9134021,87.289,87.215,21.3615349]
[1772092499179,3.02437592,87.29,87.245,3.62934716]
[1772092499874,1.68840309,87.314,87.261,3.62934716]
[1772092500076,3.02437592,87.32,87.261,3.62934716]
[1772092500277,3.02437592,87.31,87.261,3.62934716]
[1772092501273,1.68840309,87.343,87.279,3.62934716]
[1772092501473,1.68840309,87.343,87.291,3.62934716]
[1772092501779,3.02437592,87.36,87.317,3.62934716]
[1772092502078,3.02437592,87.38,87.331,3.62934716]
[1772092502272,1.7258669,87.383,87.331,3.62934716]
[1772092502872,1.7258669,87.383,87.334,3.62934716]
[1772092503470,3.02437592,87.39,87.334,3.62934716]
[1772092503471,1.7258669,87.4,87.334,3.62934716]
[1772092503780,3.02437592,87.39,87.334,3.62934716]
[1772092503979,3.02437592,87.39,87.336,3.62934716]
[1772092504279,10.2969,87.402,87.336,3.62934716]
[1772092504280,3.02437592,87.38,87.336,3.62934716]
[1772092505577,3.02437592,87.39,87.336,3.62934716]
[1772092505879,3.02437592,87.39,87.341,3.62934716]
[1772092509375,3.02437592,87.39,87.343,3.62934716]
[1772092510081,1.59428202,87.389,87.343,3.62934716]
[1772092510276,3.02437592,87.39,87.343,3.62934716]
[1772092513275,3.02437592,87.4,87.35,3.02437592]
[1772092513470,1.69236291,87.41,87.351,3.62934716]
[1772092513675,1.69236291,87.41,87.295,160.3693]
[1772092513676,4.71673883,87.41,87.361,3.62934716]
[1772092514072,4.71673883,87.41,87.36,3.02437592]
[1772092514073,3.02437592,87.41,87.362,3.62934716]
[1772092514272,1.68878337,87.416,87.362,3.62934716]
[1772092515088,3.02437592,87.41,87.362,3.62934716]
[1772092515575,1.68878337,87.416,87.362,3.62934716]
[1772092515979,1.68878337,87.416,87.364,3.62934716]
[1772092517283,3.02437592,87.42,87.37,3.02437592]
[1772092517582,3.02437592,87.42,87.371,3.62934716]
[1772092517784,3.02437592,87.42,87.313,160.3375]
[1772092517785,3.02437592,87.42,87.372,3.62934716]
[1772092518685,34.37,87.482,87.381,3.62934716]
[1772092518686,3.02437592,87.43,87.381,3.62934716]
[1772092519880,3.02437592,87.43,87.383,3.62934716]
[1772092522283,1.90434392,87.429,87.383,3.62934716]
[1772092522683,1.90434392,87.419,87.371,3.62934716]
[1772092522987,3.02437592,87.41,87.371,3.62934716]
[1772092523286,4.92871984,87.41,87.371,3.62934716]
[1772092523485,3.02437592,87.4,87.351,3.62934716]
[1772092523681,1.96519936,87.399,87.351,3.62934716]
[1772092523881,3.02437592,87.39,87.351,3.62934716]
[1772092524886,3.02437592,87.38,87.336,3.62934716]
[1772092525074,3.02437592,87.37,87.336,3.62934716]
[1772092525277,3.02437592,87.38,87.336,3.62934716]
[1772092527296,3.02437592,87.37,87.336,3.62934716]
[1772092528390,3.02437592,87.37,87.274,34.37]
[1772092528391,3.02437592,87.39,87.341,3.74355586]
[1772092528798,5.39627609,87.4,87.351,3.74355586]
[1772092529002,3.02437592,87.4,87.353,3.74355586]
[1772092529604,3.02437592,87.39,87.353,3.74355586]
[1772092529801,3.02437592,87.37,87.331,3.74355586]
[1772092530103,2.32974074,87.369,87.321,3.74355586]
[1772092530504,3.02437592,87.36,87.321,3.74355586]
[1772092532906,3.02437592,87.35,87.321,3.74355586]
[1772092533904,3.02437592,87.36,87.321,3.74355586]
[1772092534099,2.30000148,87.37,87.301,3.74355586]
[1772092534303,3.02437592,87.36,87.311,3.74355586]
[1772092535996,3.02437592,87.36,87.316,3.53048586]
[1772092536300,5.3243774,87.37,87.316,3.53048586]
[1772092537106,3.02437592,87.36,87.316,3.53048586]
[1772092540998,3.02437592,87.36,87.318,3.53048586]
[1772092541609,5.3243774,87.37,87.318,3.53048586]
[1772092542305,3.02437592,87.37,87.322,3.53048586]
[1772092543197,3.01858016,87.37,87.322,3.53048586]
[1772092543901,3.01858016,87.37,87.328,3.53048586]
[1772092544509,3.01858016,87.38,87.328,3.53048586]
[1772092545105,5.33499827,87.38,87.328,3.53048586]
[1772092545409,5.33499827,87.38,87.279,160.3992]
[1772092545410,3.01858016,87.39,87.342,3.53048586]
[1772092546910,2.30720582,87.389,87.342,3.53048586]
[1772092547303,3.01858016,87.38,87.342,3.53048586]
[1772092547503,3.01858016,87.37,87.329,3.53048586]
[1772092547910,3.01858016,87.36,87.329,3.53048586]
[1772092548615,3.01858016,87.36,87.31,3.01858016]
[1772092548616,3.01858016,87.35,87.316,3.53048586]
[1772092549504,3.01858016,87.35,87.317,10.3069]
[1772092550110,5.29353512,87.36,87.317,10.3069]
[1772092550307,5.29353512,87.36,87.316,3.53048586]
[1772092550308,2.27137365,87.359,87.316,3.53048586]
[1772092550511,3.01858016,87.35,87.316,3.53048586]
[1772092553217,3.01858016,87.35,87.3,3.01858016]
[1772092553218,3.01858016,87.35,87.306,3.53048586]
[1772092554015,10.3013,87.365,87.306,3.53048586]
[1772092554016,2.30397482,87.349,87.306,3.53048586]
[1772092554409,3.01858016,87.36,87.307,3.53048586]
[1772092554714,3.01858016,87.36,87.311,3.53048586]
[1772092555312,3.01858016,87.35,87.311,3.53048586]
[1772092556320,5.15952127,87.35,87.311,3.53048586]
[1772092557609,2.16693425,87.349,87.311,3.53048586]
[1772092559710,10.3002,87.374,87.311,3.53048586]
[1772092559917,2.16016393,87.369,87.311,3.53048586]
[1772092560116,2.16016393,87.369,87.321,3.68242882]
[1772092561816,3.01858016,87.37,87.321,3.68242882]
[1772092562913,3.01858016,87.37,87.323,3.68242882]
[1772092563920,5.2558075,87.36,87.323,3.68242882]
[1772092565216,5.2558075,87.36,87.303,10.3085]
[1772092565217,2.23722734,87.359,87.311,3.68242882]
[1772092567616,3.01858016,87.36,87.272,34.37]
[1772092567617,3.01858016,87.36,87.312,3.68242882]
[1772092567814,3.01858016,87.37,87.312,3.68242882]
[1772092568018,5.32081596,87.37,87.312,3.68242882]
[1772092568323,2.3022358,87.369,87.312,3.68242882]
[1772092568921,2.3022358,87.369,87.314,3.68242882]
[1772092569622,2.3022358,87.368,87.314,3.68242882]
[1772092570519,3.01858016,87.36,87.314,3.68242882]
[1772092571118,3.01858016,87.36,87.318,3.68242882]
[1772092571329,2.3022358,87.368,87.318,3.68242882]
[1772092571722,2.3022358,87.368,87.321,3.68242882]
[1772092571922,3.01858016,87.36,87.321,3.68242882]
[1772092572122,2.28715027,87.359,87.321,3.68242882]
[1772092575327,3.01858016,87.36,87.321,3.68242882]
[1772092575526,13.31928016,87.37,87.321,3.68242882]
[1772092575727,15.58587888,87.37,87.321,3.68242882]
[1772092575925,2.26659872,87.369,87.321,3.68242882]
[1772092576527,3.01858016,87.36,87.321,3.68242882]
[1772092579232,2.26659872,87.369,87.321,3.68242882]
[1772092579628,3.01858016,87.36,87.321,3.68242882]
[1772092582836,2.22803239,87.359,87.309,3.68242882]
[1772092583233,2.22803239,87.359,87.31,3.01858016]
[1772092583435,2.22803239,87.359,87.311,3.68242882]
[1772092584030,2.22803239,87.359,87.312,3.68242882]
[1772092584937,2.22803239,87.359,87.316,3.68242882]
[1772092585131,2.17256263,87.373,87.316,3.68242882]
[1772092585437,2.17256263,87.373,87.321,3.68242882]
[1772092586936,2.17256263,87.373,87.328,3.68026945]
[1772092591930,3.01858016,87.37,87.328,3.68026945]
[1772092593936,2.14110883,87.369,87.328,3.68026945]
[1772092601737,2.14110883,87.369,87.29,28.41806267]
[1772092601738,2.07148551,87.359,87.314,3.64895215]
[1772092604044,2.07148551,87.359,87.316,3.64895215]
[1772092608452,2.07148551,87.359,87.319,3.64895215]
[1772092609046,10.61033019,87.398,87.309,21.3615349]
[1772092609047,2.10306102,87.349,87.309,3.64895215]
[1772092610545,10.3023,87.357,87.298,3.64895215]
[1772092610546,2.09918705,87.339,87.298,3.64895215]
[1772092611245,3.01995802,87.33,87.298,3.64895215]
[1772092612140,2.09918705,87.339,87.298,3.64895215]
[1772092615354,3.01995802,87.33,87.298,3.64895215]
[1772092617258,2.09918705,87.339,87.298,3.64895215]
[1772092619460,3.01995802,87.32,87.287,3.68296627]
[1772092619857,2.18745149,87.319,87.261,3.68296627]
[1772092620060,10.61033019,87.37,87.271,3.68296627]
[1772092620061,5.20740951,87.33,87.271,3.68296627]
[1772092620259,3.01995802,87.33,87.283,3.68296627]
[1772092620956,3.01995802,87.33,87.28,3.01995802]
[1772092620957,3.01995802,87.35,87.297,3.68296627]
[1772092621151,5.20740951,87.35,87.297,3.68296627]
[1772092621957,5.20740951,87.35,87.302,3.68296627]
[1772092622363,2.19354683,87.349,87.302,3.68296627]
[1772092622567,2.19354683,87.349,87.305,3.68296627]
[1772092623866,2.19354683,87.349,87.307,3.68296627]
[1772092624066,5.22298273,87.36,87.307,3.68296627]
[1772092624260,2.20302471,87.359,87.311,3.68296627]
[1772092625959,2.20302471,87.359,87.315,3.68296627]
[1772092626263,3.01995802,87.36,87.315,3.68296627]
[1772092626461,3.01995802,87.37,87.315,3.68296627]
[1772092626667,5.23093828,87.37,87.315,3.68296627]
[1772092626869,2.21098026,87.369,87.315,3.68296627]
[1772092627867,2.21098026,87.369,87.321,3.68296627]
[1772092628464,2.21098026,87.369,87.323,3.68296627]
[1772092628664,5.19732249,87.38,87.331,3.68296627]
[1772092628870,2.17736447,87.379,87.331,3.68296627]
[1772092629170,5.19732249,87.37,87.331,3.68296627]
[1772092631773,2.20711274,87.369,87.331,3.68296627]
[1772092637073,2.2157943,87.359,87.32,3.68296627]
[1772092637675,3.01995802,87.35,87.32,3.68296627]
[1772092638272,2.2157943,87.359,87.32,3.68296627]
[1772092644684,2.2157943,87.359,87.322,3.68296627]
[1772092663894,5.3057431,87.35,87.306,3.81303988]
[1772092664094,2.28578508,87.349,87.306,3.81303988]
[1772092666902,3.01995802,87.35,87.308,3.81303988]
[1772092667291,3.02010367,87.35,87.308,3.81303988]
[1772092667494,5.29760638,87.35,87.308,3.81303988]